bitfinex/quotes_BTCUSD_20220211
["timestamp","ask_amount","ask_price","bid_price","bid_amount"]
[1644538586265,0.24493238,43454.0,43452.0,0.00034379]
[1644538586664,0.24493238,43454.0,43450.0,0.4201]
[1644538586869,0.24493238,43454.0,43451.0,0.0003438]
[1644538587866,0.24493238,43454.0,43450.0,0.4201]
[1644538588068,0.24493238,43454.0,43450.0,0.42044381]
[1644538588471,0.28263355,43453.0,43450.0,0.42044381]
[1644538588674,0.28263355,43453.0,43441.0,0.001]
[1644538588675,1.0423,43452.0,43428.0,0.13363086]
[1644538588872,1.0423,43452.0,43428.0,0.01846086]
[1644538588873,0.05,43445.0,43428.0,0.01846086]
[1644538589171,0.115202,43441.0,43428.0,0.01846086]
[1644538589372,0.0423,43440.0,43428.0,0.01846086]
[1644538589629,0.23644751,43434.0,43428.0,0.01846086]
[1644538589819,0.16573336,43433.0,43428.0,0.01846086]
[1644538590023,0.65,43431.0,43409.0,0.00077084]
[1644538590221,0.65,43431.0,43426.0,0.00013026]
[1644538590222,0.01846086,43429.0,43426.0,0.00013026]
[1644538590419,0.0423,43428.0,43411.0,0.00013026]
[1644538590821,0.0423,43428.0,43425.0,0.23131309]
[1644538591019,0.057608,43427.0,43425.0,0.23131309]
[1644538591220,0.099908,43427.0,43426.0,0.52114557]
[1644538591420,0.08021802,43426.0,43412.0,0.115216]
[1644538591819,0.08021802,43426.0,43415.0,0.0584874]
[1644538592025,0.057612,43424.0,43415.0,0.0008764]
[1644538592421,0.057612,43424.0,43419.0,0.26030284]
[1644538593468,0.09991,43427.0,43419.0,0.26030284]
[1644538593667,0.05761,43427.0,43426.0,0.2571384]
[1644538593869,0.01846086,43429.0,43426.0,0.2571384]
[1644538594068,0.01846086,43429.0,43426.0,0.3071384]
[1644538594272,0.01846086,43429.0,43427.0,0.0830922]
[1644538594470,0.5,43430.0,43428.0,0.6923]
[1644538594471,0.03692172,43430.0,43428.0,0.6923]
[1644538594674,0.0005133,43446.0,43428.0,0.7423]
[1644538594867,0.0005133,43446.0,43445.0,0.2246252]
[1644538595070,0.3,43450.0,43443.0,0.27468727]
[1644538595270,0.13509998,43451.0,43435.0,0.15746]
[1644538595470,0.08000515,43444.0,43435.0,0.15746]
[1644538596068,0.00038304,43446.0,43440.0,0.1988991]
[1644538596272,0.057585,43446.0,43440.0,0.1988991]
[1644538596470,0.057585,43446.0,43444.0,0.32961881]
[1644538596671,0.05796806,43446.0,43444.0,0.32961881]
[1644538596870,0.05796806,43446.0,43440.0,0.1988991]
[1644538597515,0.07940959,43444.0,43440.0,0.1988991]
[1644538597916,0.07940959,43444.0,43442.0,0.33139811]
[1644538598115,0.05796809,43446.0,43442.0,0.33139811]
[1644538598318,0.00038309,43446.0,43442.0,0.33139811]
[1644538598618,0.057581,43449.0,43440.0,0.54965052]
[1644538598818,0.01993298,43451.0,43442.0,0.05043729]
[1644538599018,0.00051388,43446.0,43443.0,0.3126114]
[1644538599416,0.00051388,43446.0,43442.0,0.05043729]
[1644538599618,0.00051388,43446.0,43443.0,0.25257539]
[1644538599821,0.23495054,43450.0,43443.0,0.25257539]
[1644538600019,0.19607322,43451.0,43443.0,0.25257539]
[1644538600218,0.00038311,43447.0,43443.0,0.25257539]
[1644538600518,0.00038311,43447.0,43441.0,0.0423]
[1644538601164,0.19607322,43451.0,43441.0,0.0423]
[1644538601366,0.05796711,43446.0,43445.0,0.271175]
[1644538601565,0.00038311,43446.0,43441.0,0.0423]
[1644538601767,0.00038311,43446.0,43430.0,0.3]
[1644538601968,0.00038311,43446.0,43434.0,0.05]
[1644538602167,0.00038311,43446.0,43431.0,0.4]
[1644538602368,0.08090622,43451.0,43431.0,0.4]
[1644538602565,0.00038307,43446.0,43439.0,0.29085538]
[1644538602765,0.00038307,43446.0,43436.0,0.24989789]
[1644538603166,0.057597,43445.0,43436.0,0.24989789]
[1644538603767,0.057597,43445.0,43438.0,0.00043865]
[1644538604370,0.11519107,43445.0,43438.0,0.00043865]
[1644538604625,0.35012108,43450.0,43438.0,0.00043865]
[1644538604626,0.0423,43447.0,43438.0,0.00043865]
[1644538604820,0.00568534,43444.0,43429.0,0.39]
[1644538605021,0.00568534,43444.0,43439.0,0.00043864]
[1644538605218,0.057606,43440.0,43439.0,0.00043864]
[1644538606018,0.057606,43440.0,43435.0,0.00013017]
[1644538606221,0.057606,43440.0,43434.0,0.24027298]
[1644538607016,0.057606,43440.0,43434.0,0.00013017]
[1644538607218,0.057606,43440.0,43432.0,0.00013017]
[1644538607522,0.057606,43440.0,43431.0,0.25908795]
[1644538607818,0.057606,43440.0,43431.0,0.25921812]
[1644538608218,0.057606,43440.0,43431.0,0.25908795]
[1644538608667,0.057606,43440.0,43436.0,0.22450404]
[1644538608867,0.057606,43440.0,43433.0,0.00043999]
[1644538609668,0.057606,43440.0,43432.0,0.00013017]
[1644538609869,0.057606,43440.0,43431.0,0.25908795]
[1644538609870,0.057606,43440.0,43434.0,0.27125751]
[1644538610868,0.057606,43440.0,43432.0,0.00013017]
[1644538611072,0.30459043,43440.0,43435.0,0.00043998]
[1644538611475,0.40459043,43440.0,43435.0,0.00043998]
[1644538611674,0.45459043,43440.0,43435.0,0.00043998]
[1644538612120,0.45459043,43440.0,43429.0,0.00013017]
[1644538612121,0.26699955,43430.0,43429.0,0.00013017]
[1644538612315,0.46463889,43440.0,43429.0,0.00176015]
[1644538612316,0.05760866,43433.0,43429.0,0.00176015]
[1644538612514,0.05761,43430.0,43429.0,0.00176015]
[1644538613115,0.05761,43430.0,43412.0,0.285]
[1644538613116,0.05761,43430.0,43420.0,0.00013017]
[1644538613416,0.05761,43430.0,43427.0,0.00044005]
[1644538613417,0.05261,43430.0,43427.0,0.00044005]
[1644538614415,0.05261,43430.0,43422.0,0.00013017]
[1644538614618,0.05261,43430.0,43426.0,0.00044006]
[1644538615017,0.05261,43430.0,43426.0,0.06824692]
[1644538615616,0.05261,43430.0,43427.0,0.48214261]
[1644538615872,0.05261,43430.0,43427.0,0.83038715]
[1644538616068,0.05261,43430.0,43427.0,0.88038715]
[1644538616672,0.3,43438.0,43427.0,0.88038715]
[1644538616673,0.3,43438.0,43427.0,0.85038715]
[1644538616871,0.3,43442.0,43434.0,0.24156893]
[1644538617072,0.26301039,43442.0,43434.0,0.24156893]
[1644538617270,0.26301039,43442.0,43428.0,0.00013017]
[1644538617470,0.26301039,43442.0,43427.0,0.57419942]
[1644538617670,0.26278978,43442.0,43427.0,0.57419942]
[1644538617875,0.3801,43443.0,43427.0,0.57419942]
[1644538618073,0.3801,43443.0,43427.0,0.62419942]
[1644538618271,0.3801,43443.0,43432.0,0.00044]
[1644538618272,0.3751,43443.0,43432.0,0.00044]
[1644538618472,0.3751,43443.0,43437.0,0.34068957]
[1644538618673,0.3751,43443.0,43432.0,0.00044]
[1644538618872,0.62205115,43443.0,43432.0,0.00044]
[1644538619069,0.3751,43443.0,43432.0,0.00044]
[1644538619270,0.3751,43443.0,43430.0,0.00013017]
[1644538619471,0.3751,43443.0,43435.0,0.00043997]
[1644538619721,0.0005142,43448.0,43436.0,0.25497694]
[1644538619922,0.35324921,43447.0,43436.0,0.25497694]
[1644538620125,0.0005142,43448.0,43437.0,0.26815505]
[1644538620324,0.29193797,43449.0,43437.0,0.26828522]
[1644538620528,0.39193797,43449.0,43439.0,0.00043993]
[1644538620721,0.00051423,43448.0,43439.0,0.00043993]
[1644538621622,0.29193797,43449.0,43438.0,0.00013017]
[1644538621824,0.00051425,43448.0,43441.0,0.00043991]
[1644538622827,0.29654326,43450.0,43438.0,0.00013017]
[1644538623030,0.29654326,43450.0,43442.0,0.0004399]
[1644538623031,0.00051426,43448.0,43442.0,0.0004399]
[1644538624066,0.21012577,43449.0,43437.0,0.00013017]
[1644538624271,0.21012577,43449.0,43436.0,0.25497694]
[1644538624272,0.00051427,43448.0,43443.0,0.00043989]
[1644538625267,0.08090622,43451.0,43437.0,0.00013017]
[1644538625467,0.00051427,43448.0,43443.0,0.00043989]
[1644538625868,0.00051427,43448.0,43443.0,0.00057006]
[1644538626468,0.18090622,43451.0,43443.0,0.00013017]
[1644538626670,0.00051427,43448.0,43443.0,0.00043989]
[1644538626870,0.00051427,43448.0,43443.0,0.00057006]
[1644538627519,0.4576042,43455.0,43443.0,0.00013017]
[1644538627717,0.4576042,43455.0,43443.0,0.00043989]
[1644538627718,0.3,43455.0,43443.0,0.00043989]
[1644538627918,0.00051427,43448.0,43443.0,0.25922787]
[1644538628120,0.00051427,43448.0,43443.0,0.00057006]
[1644538628322,0.00051427,43448.0,43443.0,0.00043989]
[1644538628718,0.08090622,43450.0,43435.0,0.00013017]
[1644538628920,0.08090622,43450.0,43434.0,0.12352055]
[1644538629120,0.20808036,43448.0,43443.0,0.00043989]
[1644538629522,0.00051427,43448.0,43443.0,0.00043989]
[1644538629721,0.00051427,43448.0,43443.0,0.00057006]
[1644538629921,0.08090622,43450.0,43437.0,0.00013017]
[1644538630123,0.08090622,43450.0,43443.0,0.00043989]
[1644538630323,0.00051427,43448.0,43443.0,0.00043989]
[1644538630978,0.04798534,43447.0,43443.0,0.00043989]
[1644538631171,0.04798534,43447.0,43434.0,0.00013017]
[1644538631172,0.04759878,43447.0,43434.0,0.00013017]
[1644538631371,0.04759878,43447.0,43443.0,0.00043989]
[1644538631773,0.65,43446.0,43432.0,0.00013017]
[1644538631973,0.95,43446.0,43434.0,0.00013017]
[1644538632171,1.05568534,43446.0,43431.0,0.33220067]
[1644538632371,0.41238139,43445.0,43431.0,0.33220067]
[1644538632771,0.05760301,43441.0,43431.0,0.33220067]
[1644538633072,0.35425142,43441.0,43433.0,0.19171976]
[1644538633271,0.15760301,43441.0,43433.0,0.19171976]
[1644538634470,0.05760301,43441.0,43433.0,0.19171976]
[1644538634921,0.05760301,43441.0,43432.0,0.00013017]
[1644538635125,0.0005143,43439.0,43431.0,0.33276536]
[1644538635724,0.0005143,43439.0,43431.0,0.33263519]
[1644538635922,0.0005143,43439.0,43431.0,0.00043452]
[1644538636127,0.28934757,43441.0,43429.0,0.00013017]
[1644538636327,0.28934757,43441.0,43431.0,0.00043452]
[1644538636328,0.00051431,43437.0,43431.0,0.00043452]
[1644538636525,0.05761072,43436.0,43431.0,0.00043452]
[1644538637322,0.05761072,43436.0,43426.0,0.00013017]
[1644538637522,0.05760976,43434.0,43425.0,0.2403405]
[1644538638466,0.28834591,43433.0,43425.0,0.2403405]
[1644538638669,0.05761117,43432.0,43425.0,0.2403405]
[1644538639066,0.38834591,43433.0,43425.0,0.2403405]
[1644538639267,0.1,43433.0,43425.0,0.2403405]
[1644538639466,0.1,43433.0,43425.0,0.24050335]
[1644538639867,0.1,43433.0,43427.0,0.00042912]
[1644538640068,0.05761297,43432.0,43427.0,0.00059197]
[1644538640268,0.00051265,43435.0,43427.0,0.00059197]
[1644538640967,0.00038395,43435.0,43427.0,0.00016285]
[1644538641171,0.05761252,43432.0,43427.0,0.00016285]
[1644538641768,0.05761252,43432.0,43427.0,0.00029302]
[1644538642126,0.38951426,43436.0,43427.0,0.00016285]
[1644538642321,0.00038394,43435.0,43427.0,0.00029302]
[1644538642521,0.00038394,43435.0,43431.0,0.23654545]
[1644538642522,0.05761083,43434.0,43431.0,0.23654545]
[1644538642723,0.00038394,43435.0,43433.0,0.25197033]
[1644538642930,0.00038394,43435.0,43433.0,0.00016285]
[1644538643322,0.1576042,43443.0,43433.0,0.00016285]
[1644538643523,0.00038397,43436.0,43434.0,0.21528175]
[1644538643729,0.00038397,43436.0,43434.0,0.43591462]
[1644538643923,0.1576042,43444.0,43434.0,0.43591462]
[1644538643924,0.2932811,43444.0,43434.0,0.43591462]
[1644538644133,1.0504042,43445.0,43434.0,0.75878982]
[1644538644323,0.1576042,43444.0,43434.0,0.75878982]
[1644538644725,0.3,43445.0,43434.0,0.75878982]
[1644538645324,0.1576042,43447.0,43434.0,0.75891999]
[1644538645325,0.2576042,43447.0,43434.0,0.75891999]
[1644538645524,0.1,43447.0,43441.0,0.20653608]
[1644538645725,0.55339962,43449.0,43441.0,0.20669895]
[1644538645969,0.05759325,43448.0,43441.0,0.20669895]
[1644538646768,0.0345588,43450.0,43441.0,0.43809458]
[1644538646975,0.19346113,43456.0,43441.0,0.43809458]
[1644538646976,0.1576042,43449.0,43441.0,0.43809458]
[1644538647170,0.00038397,43447.0,43435.0,0.04243017]
[1644538647377,0.00038397,43447.0,43440.0,0.00016287]
[1644538648066,1.81017661,43448.0,43440.0,0.00016287]
[1644538648267,0.23755012,43444.0,43440.0,0.00016287]
[1644538648467,0.13834484,43443.0,43440.0,0.00016287]
[1644538648670,0.18834484,43443.0,43433.0,0.00013017]
[1644538648869,0.165242,43440.0,43433.0,0.00016287]
[1644538649073,0.057621,43438.0,43432.0,0.00042896]
[1644538649267,0.0423,43437.0,43432.0,0.00042896]
[1644538649468,0.20131638,43436.0,43432.0,0.00042896]
[1644538649720,0.0423,43435.0,43432.0,0.00042896]
[1644538650123,0.099921,43435.0,43432.0,0.00042896]
[1644538650520,0.099921,43435.0,43422.0,0.25618137]
[1644538650722,0.05762,43432.0,43431.0,0.00042897]
[1644538651020,0.17285915,43432.0,43431.0,0.00042897]
[1644538651219,0.47387445,43432.0,43431.0,0.00042897]
[1644538651420,0.57387445,43432.0,43431.0,0.00042897]
[1644538651625,0.57387445,43432.0,43422.0,0.25618137]
[1644538651822,0.21386026,43427.0,43422.0,0.25618137]
[1644538652020,0.21386026,43427.0,43423.0,0.00171621]
[1644538652922,0.21386026,43427.0,43420.0,0.0001]
[1644538653123,0.21386026,43427.0,43423.0,0.00042905]
[1644538653124,0.11524162,43427.0,43423.0,0.00042905]
[1644538653369,0.11524,43426.0,43423.0,0.00042905]
[1644538654176,0.11524,43426.0,43420.0,0.0001]
[1644538654370,0.11524,43426.0,43422.0,0.00042906]
[1644538654572,0.28775766,43425.0,43422.0,0.00042906]
[1644538654773,0.28775766,43425.0,43406.0,0.19870444]
[1644538654774,0.7,43423.0,43406.0,0.19870444]
[1644538654976,0.7,43423.0,43407.0,0.0011]
[1644538654977,0.05763,43412.0,43407.0,0.0011]
[1644538655172,0.21808391,43411.0,43407.0,0.0011]
[1644538655371,0.21808391,43411.0,43405.0,0.0011]
[1644538655372,0.0423,43410.0,43405.0,0.0011]
[1644538655573,0.65,43409.0,43405.0,0.0011]
[1644538655773,0.0423,43408.0,43407.0,0.07194382]
[1644538655975,0.094949,43408.0,43407.0,0.07194382]
[1644538656174,0.057649,43408.0,43407.0,0.07194382]
[1644538656372,0.24833845,43411.0,43407.0,0.07194382]
[1644538656373,0.19833845,43411.0,43407.0,0.07194382]
[1644538656574,0.19833845,43411.0,43405.0,0.0011]
[1644538656777,0.24063845,43411.0,43410.0,0.34286073]
[1644538656972,0.24063845,43411.0,43405.0,0.00122716]
[1644538656973,0.19826945,43411.0,43405.0,0.00122716]
[1644538657625,0.19826945,43411.0,43409.0,0.06849388]
[1644538658122,0.19826945,43411.0,43410.0,0.32332311]
[1644538659024,0.19826945,43411.0,43405.0,0.0011]
[1644538659222,0.19826945,43411.0,43408.0,0.00041846]
[1644538660225,0.19826945,43411.0,43405.0,0.0011]
[1644538660425,0.08492358,43412.0,43407.0,0.00041847]
[1644538660624,0.0423,43411.0,43407.0,0.00041847]
[1644538660870,0.05764951,43410.0,43407.0,0.00041847]
[1644538661070,0.36419592,43409.0,43407.0,0.00041847]
[1644538661270,0.36390123,43408.0,43407.0,0.00041847]
[1644538661576,0.36390123,43408.0,43392.0,0.16182568]
[1644538661577,0.15,43405.0,43392.0,0.16182568]
[1644538661774,0.15,43405.0,43385.0,0.0011]
[1644538661775,0.4,43397.0,43385.0,0.0011]
[1644538661978,0.4,43397.0,43382.0,0.0011]
[1644538661979,0.05,43391.0,43382.0,0.0011]
[1644538662175,0.05,43391.0,43374.0,0.0011]
[1644538662176,0.65,43384.0,43374.0,0.0011]
[1644538662474,0.0423,43383.0,43374.0,0.0011]
[1644538662673,0.26635592,43382.0,43374.0,0.0011]
[1644538662876,0.0423,43381.0,43370.0,0.00133498]
[1644538663177,0.0423,43381.0,43360.0,0.0011]
[1644538663178,0.34486488,43370.0,43361.0,0.0020763]
[1644538663373,0.057715,43368.0,43351.0,0.0165426]
[1644538663574,0.3423,43367.0,43351.0,0.0165426]
[1644538663773,0.0423,43366.0,43361.0,0.0011]
[1644538663973,0.05771928,43363.0,43361.0,0.0011]
[1644538664172,0.05772,43363.0,43361.0,0.0011]
[1644538664640,0.05772,43363.0,43343.0,0.19304371]
[1644538664641,0.30198504,43362.0,43343.0,0.19304371]
[1644538664835,0.8697,43361.0,43343.0,0.19304371]
[1644538665031,0.40767038,43362.0,43345.0,0.0001297]
[1644538665032,0.0423,43360.0,43345.0,0.0001297]
[1644538665230,0.057726,43358.0,43354.0,0.00012538]
[1644538665433,0.15786365,43361.0,43354.0,0.00012538]
[1644538665630,0.0423,43366.0,43359.0,0.06690484]
[1644538665831,0.0423,43366.0,43359.0,0.36206135]
[1644538666233,0.0423,43366.0,43359.0,0.46206135]
[1644538666433,0.0423,43366.0,43365.0,0.05]
[1644538666631,0.22954583,43377.0,43360.0,0.35054758]
[1644538666830,0.22954583,43377.0,43373.0,0.34510097]
[1644538667031,0.22954583,43377.0,43373.0,0.58398539]
[1644538667032,0.01906097,43377.0,43373.0,0.58398539]
[1644538667234,0.01906097,43377.0,43373.0,0.34510097]
[1644538667531,0.01906097,43377.0,43373.0,0.34551873]
[1644538668131,0.01906097,43377.0,43374.0,0.26068546]
[1644538668777,0.1598,43391.0,43374.0,0.26068546]
[1644538668778,0.2598,43391.0,43374.0,0.26068546]
[1644538668975,0.1423,43391.0,43381.0,0.08281383]
[1644538669176,0.115348,43389.0,43381.0,0.08281383]
[1644538669376,0.115348,43389.0,43384.0,0.19578161]
[1644538669581,0.32732781,43393.0,43382.0,0.0001297]
[1644538669781,0.32732781,43393.0,43380.0,0.23063254]
[1644538669978,0.32732781,43393.0,43384.0,0.00041765]
[1644538670178,0.00568534,43394.0,43384.0,0.00041765]
[1644538670480,0.057667,43390.0,43384.0,0.00041765]
[1644538670877,0.057667,43390.0,43381.0,0.00012963]
[1644538670878,0.00034176,43383.0,43381.0,0.00012963]
[1644538671079,0.00034176,43383.0,43380.0,0.23063254]
[1644538671278,0.00034176,43383.0,43379.0,0.00012963]
[1644538671477,0.00034176,43383.0,43372.0,0.35125695]
[1644538671681,0.00034176,43383.0,43371.0,0.00012963]
[1644538671878,0.00034176,43383.0,43366.0,0.05]
[1644538672138,0.0060271,43383.0,43366.0,0.05012963]
[1644538672346,0.26828586,43380.0,43370.0,0.34407361]
[1644538672532,0.32596486,43380.0,43367.0,0.06400876]
[1644538672732,0.057679,43380.0,43367.0,0.00012963]
[1644538672933,0.157679,43380.0,43366.0,0.05]
[1644538673132,0.057679,43380.0,43368.0,0.05]
[1644538673733,0.057679,43380.0,43372.0,0.00012408]
[1644538673937,0.357679,43380.0,43372.0,0.00012408]
[1644538674135,0.057679,43380.0,43372.0,0.00012408]
[1644538674333,0.157679,43380.0,43372.0,0.00012408]
[1644538674633,0.157679,43380.0,43369.0,0.00012963]
[1644538674837,0.41071283,43380.0,43374.0,0.00041253]
[1644538675034,0.157679,43380.0,43374.0,0.00041253]
[1644538675434,0.057679,43380.0,43374.0,0.00041253]
[1644538675633,0.057679,43380.0,43374.0,0.25639349]
[1644538675881,0.057679,43380.0,43374.0,0.25598096]
[1644538676083,0.057679,43380.0,43375.0,0.00041252]
[1644538676283,0.057679,43380.0,43375.0,0.00054215]
[1644538676885,0.057679,43380.0,43375.0,0.00041252]
[1644538677084,0.057679,43380.0,43370.0,0.00012963]
[1644538677285,0.057679,43380.0,43375.0,0.00041251]
[1644538677687,0.057679,43380.0,43376.0,0.22094684]
[1644538678086,0.057679,43380.0,43375.0,0.00041251]
[1644538678288,0.057679,43380.0,43371.0,0.00012963]
[1644538678487,0.057679,43380.0,43370.0,0.00012963]
[1644538678687,0.057679,43380.0,43369.0,0.3628708]
[1644538678988,0.057679,43380.0,43369.0,0.3128708]
[1644538679186,0.6304819,43379.0,43369.0,0.05]
[1644538679387,0.4161267,43379.0,43369.0,0.05]
[1644538679633,0.4161267,43379.0,43372.0,0.00041255]
[1644538679634,0.11537,43379.0,43372.0,0.00041255]
[1644538679822,0.52657476,43379.0,43372.0,0.00041255]
[1644538680027,0.39580957,43393.0,43372.0,0.00041255]
[1644538680222,0.0423,43383.0,43378.0,0.19275365]
[1644538680524,0.1,43385.0,43378.0,0.19275365]
[1644538680723,0.1,43385.0,43373.0,0.00012963]
[1644538680724,0.057677,43383.0,43373.0,0.00012963]
[1644538680923,0.057677,43383.0,43378.0,0.00041249]
[1644538681523,0.057677,43383.0,43380.0,0.23398867]
[1644538682925,0.057677,43383.0,43381.0,0.07120928]
[1644538683125,0.057677,43383.0,43380.0,0.23398867]
[1644538684575,0.057677,43383.0,43379.0,0.00054055]
[1644538684776,0.057677,43383.0,43379.0,0.00041092]
[1644538684975,0.00568534,43382.0,43379.0,0.00041092]
[1644538685576,0.115387,43380.0,43373.0,0.00012963]
[1644538685778,0.115387,43380.0,43378.0,0.00041093]
[1644538686776,0.115387,43380.0,43375.0,0.00012963]
[1644538686975,0.115387,43380.0,43377.0,0.00041095]
[1644538687830,0.165387,43380.0,43373.0,0.00012963]
[1644538688028,0.057692,43378.0,43376.0,0.00041095]
[1644538689027,0.057692,43378.0,43374.0,0.22876855]
[1644538689229,0.057692,43378.0,43375.0,0.00041096]
[1644538690229,0.057692,43378.0,43374.0,0.22876855]
[1644538690436,0.057692,43378.0,43374.0,0.00041097]
[1644538690630,0.057692,43378.0,43375.0,0.01961001]
[1644538691298,0.057692,43378.0,43374.0,0.0005406]
[1644538691483,0.057692,43378.0,43372.0,0.23508695]
[1644538691683,0.057692,43378.0,43374.0,0.00041097]
[1644538692684,0.057692,43378.0,43374.0,0.01961001]
[1644538692887,0.057692,43378.0,43374.0,0.02002098]
[1644538693485,0.057692,43378.0,43374.0,0.00041097]
[1644538693884,0.057692,43378.0,43373.0,0.00012963]
[1644538694087,0.057692,43378.0,43374.0,0.00041097]
[1644538695026,0.057692,43378.0,43373.0,0.01961001]
[1644538695027,0.65,43377.0,43373.0,0.01961001]
[1644538695223,0.65,43377.0,43374.0,0.00041097]
[1644538695224,0.230827,43376.0,43374.0,0.00041097]
[1644538695423,0.65,43374.0,43367.0,0.00164414]
[1644538695628,0.057706,43371.0,43367.0,0.00164414]
[1644538695824,0.215412,43370.0,43367.0,0.00164414]
[1644538696425,0.215412,43370.0,43364.0,0.00012963]
[1644538696626,0.215412,43370.0,43363.0,0.3293876]
[1644538696929,0.057703,43368.0,43364.0,0.0707023]
[1644538697127,0.1578636,43373.0,43366.0,0.057687]
[1644538697326,0.330827,43376.0,43364.0,0.0707023]
[1644538697526,0.330827,43376.0,43364.0,0.07083193]
[1644538697725,0.173112,43370.0,43369.0,0.19667102]
[1644538700889,0.00050735,43378.0,43370.0,0.65]
[1644538701081,0.1578636,43381.0,43371.0,0.05767232]
[1644538701279,0.03390269,43385.0,43379.0,0.23012466]
[1644538701481,0.115352,43380.0,43376.0,0.28599882]
[1644538701682,0.00050735,43378.0,43374.0,0.057671]
[1644538701880,0.057679,43377.0,43374.0,0.057671]
[1644538702133,0.057679,43377.0,43373.0,0.00012963]
[1644538702328,0.057679,43377.0,43372.0,0.05]
[1644538702535,0.057679,43377.0,43372.0,0.05040894]
[1644538702926,0.057679,43377.0,43372.0,0.05053857]
[1644538703526,0.057679,43377.0,43372.0,0.05012963]
[1644538703727,0.057679,43377.0,43372.0,0.05025231]
[1644538703928,0.057679,43377.0,43372.0,0.04624331]
[1644538704749,0.057679,43377.0,43372.0,0.04612063]
[1644538704927,0.057679,43377.0,43372.0,0.046458]
[1644538705981,0.057679,43377.0,43372.0,0.04612063]
[1644538706178,0.057679,43377.0,43372.0,0.046458]
[1644538706379,0.057679,43377.0,43374.0,0.22199299]
[1644538706580,0.057679,43377.0,43373.0,0.00012963]
[1644538706880,0.057679,43377.0,43372.0,0.046458]
[1644538707079,0.057679,43377.0,43372.0,0.04612063]
[1644538707280,0.057679,43377.0,43372.0,0.046458]
[1644538708482,0.057679,43377.0,43372.0,0.04649161]
[1644538709081,0.057679,43377.0,43375.0,0.08061709]
[1644538709285,0.057679,43377.0,43375.0,0.13061709]
[1644538709482,0.057679,43377.0,43375.0,0.18061709]
[1644538709725,0.057679,43377.0,43373.0,0.05012963]
[1644538709923,0.057679,43377.0,43372.0,0.04649161]
[1644538710125,0.057679,43377.0,43375.0,0.05767]
[1644538710523,0.057679,43377.0,43373.0,0.00012963]
[1644538710722,0.057679,43377.0,43372.0,0.04612063]
[1644538710923,0.057679,43377.0,43372.0,0.04649161]
[1644538711824,0.057679,43377.0,43372.0,0.10380263]
[1644538712023,0.057679,43377.0,43372.0,0.1041281]
[1644538712423,0.057679,43377.0,43374.0,0.07440827]
[1644538712824,0.057679,43377.0,43374.0,0.05768]
[1644538713028,0.057679,43377.0,43373.0,0.00012963]
[1644538713224,0.057679,43377.0,43371.0,0.00012963]
[1644538713486,0.057679,43377.0,43363.0,0.05]
[1644538713487,0.057679,43377.0,43372.0,0.00032547]
[1644538714085,0.057679,43377.0,43372.0,0.0004551]
[1644538714287,0.057679,43377.0,43372.0,0.00012963]
[1644538714586,0.057679,43377.0,43372.0,0.00032547]
[1644538714786,0.057679,43377.0,43372.0,0.0004551]
[1644538715688,0.057679,43377.0,43372.0,0.00046534]
[1644538716193,0.36147418,43377.0,43372.0,0.00046534]
[1644538716388,0.46147418,43377.0,43372.0,0.00033571]
[1644538716788,0.46147418,43377.0,43364.0,0.00012963]
[1644538716988,0.26499968,43375.0,43372.0,0.00033571]
[1644538717233,0.057701,43373.0,43372.0,0.00033571]
[1644538717430,0.42087728,43373.0,43372.0,0.00033571]
[1644538717831,0.52087728,43373.0,43372.0,0.00033571]
[1644538718035,0.057699,43371.0,43364.0,0.00012963]
[1644538718231,0.057699,43371.0,43370.0,0.00033572]
[1644538718835,0.52087728,43373.0,43370.0,0.00033572]
[1644538719233,0.200001,43373.0,43364.0,0.00012963]
[1644538719532,0.057699,43371.0,43369.0,0.00033573]
[1644538720331,0.057699,43371.0,43364.0,0.00012963]
[1644538720531,0.057699,43371.0,43368.0,0.00033343]
[1644538721575,0.057699,43371.0,43367.0,0.19904244]
[1644538721875,0.057699,43371.0,43368.0,0.34914425]
[1644538722877,0.057699,43371.0,43370.0,0.21026698]
[1644538723276,0.057699,43371.0,43368.0,0.34927388]
[1644538723478,0.057699,43371.0,43368.0,0.34914425]
[1644538724279,0.057699,43371.0,43368.0,0.54982103]
[1644538725623,0.057699,43371.0,43368.0,0.34907589]
[1644538725825,0.057699,43371.0,43367.0,0.00033396]
[1644538726227,0.11540051,43371.0,43367.0,0.00033396]
[1644538726430,0.115403,43370.0,43366.0,0.00012963]
[1644538726627,0.115403,43370.0,43367.0,0.00033396]
[1644538727626,0.115403,43370.0,43364.0,0.00012963]
[1644538727829,0.115403,43370.0,43350.0,0.3501]
[1644538727830,0.42155906,43370.0,43366.0,0.00033385]
[1644538728029,0.115403,43370.0,43366.0,0.00033385]
[1644538728473,0.157703,43370.0,43366.0,0.00033385]
[1644538728772,0.215404,43370.0,43362.0,0.00012963]
[1644538728978,0.215404,43370.0,43366.0,0.00033385]
[1644538729173,0.057705,43367.0,43366.0,0.00033385]
[1644538729973,0.057705,43367.0,43362.0,0.00012963]
[1644538730173,0.057707,43365.0,43364.0,0.00033386]
[1644538730378,0.37875963,43365.0,43364.0,0.00033386]
[1644538730578,0.37875963,43365.0,43361.0,0.00012963]
[1644538730579,0.65,43364.0,43361.0,0.00012963]
[1644538730778,0.0423,43363.0,43359.0,0.00012963]
[1644538730976,0.0423,43363.0,43358.0,0.00133565]
[1644538730977,0.35364424,43362.0,43358.0,0.00133565]
[1644538731175,0.057721,43360.0,43348.0,0.00012963]
[1644538731378,0.21340519,43353.0,43348.0,0.00012963]
[1644538731775,0.0423,43354.0,43348.0,0.00012963]
[1644538731975,0.0423,43354.0,43345.0,0.00012963]
[1644538732529,0.707722,43353.0,43344.0,0.01753852]
[1644538732728,0.057727,43352.0,43344.0,0.01753852]
[1644538733129,0.0423,43351.0,43344.0,0.01753852]
[1644538733330,0.51834163,43351.0,43344.0,0.01753852]
[1644538733631,0.31559649,43351.0,43344.0,0.01753852]
[1644538733829,0.41559649,43351.0,43344.0,0.01753852]
[1644538734030,0.17320329,43350.0,43344.0,0.21818846]
[1644538734233,0.0423,43349.0,43344.0,0.21818846]
[1644538734929,0.15776665,43349.0,43344.0,0.21859682]
[1644538735332,0.057733,43348.0,43344.0,0.21859682]
[1644538735531,0.0423,43347.0,43344.0,0.21859682]
[1644538735730,0.173194,43346.0,43344.0,0.01794688]
[1644538735980,0.0423,43345.0,43344.0,0.01753852]
[1644538736380,0.65,43344.0,43339.0,0.02112413]
[1644538736582,0.707738,43344.0,43339.0,0.02112413]
[1644538736785,0.35815763,43342.0,43339.0,0.02112413]
[1644538736983,0.707751,43340.0,43337.0,0.00163373]